[Event "Leca Open 2022"]
[Site "Leca da Palmeira"]
[Date "2022.08.05"]
[Round "9.3"]
[White "Krishna C R G"]
[Black "Martinez Duany, Lelys Stanley"]
[Result "1/2-1/2"]
[ECO "A56"]
[WhiteElo "2430"]
[BlackElo "2497"]
[Annotator "TA"]
[PlyCount "60"]
[EventDate "2022.08.02"]
[EventType "swiss"]
[EventCountry "POR"]
[SourceTitle "playchess.com"]
[Source "ChessBase"]
[SourceQuality "1"]
[TimeControl "5400+30"]

{[%evp 17,60,66,80,15,24,15,20,26,26,26,29,25,25,17,41,35,47,46,43,46,40,37,36,37,49,50,58,40,52,52,53,4,5,0,0,0,45,0,0,-1,-1,-1,-1,-1,-5]} 1. d4 {[%emt 0:00:04]} Nf6 {[%emt 0:00:12]} 2. c4 {[%emt 0:00:05]} c5 {[%emt 0:00:21]} 3. d5 {[%emt 0:00:10]} g6 {[%emt 0:00:19]} 4. Nc3 {[%emt 0:01:14]} Bg7 {[%emt 0:00:06]} 5. Nf3 {[%emt 0:01:08]} O-O {[%emt 0:00:11]} 6. e4 {[%emt 0:00:02]} d6 {[%emt 0:00:06]} 7. h3 {[%emt 0:00:04]} Na6 {[%emt 0:01:37]} 8. Bd3 {[%emt 0:03:10]} Nc7 {[%emt 0:00:28]} 9. O-O {[%emt 0:00:32]} e5 {[%emt 0:00:05]} 10. dxe6 {[%emt 0:07:07] White is more active. is the legacy move (10.Bg5). E90: King's Indian: Classical: Early deviations and 6 h3.} (10. Re1 $16) 10... Nxe6 $11 {[%emt 0:00:20]} 11. Be3 {[%emt 0:00:06]} Nd7 {[%emt 0:01:32]} 12. Be2 {[%emt 0:19:28]} Ne5 {[%emt 0:00:16]} 13. Nxe5 {[%emt 0:00:03]} dxe5 {[%emt 0:00:36]} 14. Qxd8 {[%emt 0:15:30]} Rxd8 {[%emt 0:00:06]} 15. Bg4 {[%emt 0:00:06]} h5 {[%emt 0:12:45]} 16. Bxe6 {[%emt 0:01:09]} Bxe6 {[%emt 0:00:05]} 17. Nd5 {[%emt 0:00:24]} Bxd5 {[%emt 0:01:15]} 18. cxd5 {[%emt 0:00:06]} Bf8 {[%emt 0:01:23]} 19. Rfc1 {[%emt 0:02:00] [#]} b6 $146 {[%emt 0:04:30]} ({Predecessor:} 19... Rdc8 20. a4 f5 21. f3 f4 22. Bf2 Bd6 23. Rc2 Rc7 24. a5 Kf7 25. Kf1 Rac8 {1-0 (47) Savchenko,S (2506)-Petrov,M (2406) Sunny Beach 2005}) 20. Rc2 {[%emt 0:03:58]} Kh7 {[%emt 0:01:16]} 21. a4 {[%emt 0:03:09]} Bh6 {[%emt 0:01:09]} 22. Ra3 {[%emt 0:03:00]} h4 {[%emt 0:03:47]} 23. Bxh6 {[%emt 0:03:26]} Kxh6 $14 {[%emt 0:00:04][%mdl 4096] Endgame KRR-KRR} 24. Rf3 {[%emt 0:00:35]} (24. f3 $14 {feels stronger.}) 24... Rd7 {[%emt 0:01:14]} 25. Rf6 {[%emt 0:03:47]} Kg5 {[%emt 0:01:00]} 26. Rc6 {[%emt 0:01:39]} Rad8 {[%emt 0:00:30]} 27. Rc4 {[%emt 0:08:05]} Rd6 {[%emt 0:00:12] The position is equal.} 28. Rxd6 {[%emt 0:01:29]} Rxd6 {[%emt 0:00:06]} 29. b4 {[%emt 0:00:07]} cxb4 {[%emt 0:00:15]} 30. Rxb4 {[%emt 0:00:02]} f5 {[%emt 0:00:38] Weighted Error Value: White=0.12 (very precise) /Black=0.04 (flawless)} 1/2-1/2

[Event "Leca Open 2022"]
[Site "Leca da Palmeira"]
[Date "2022.08.05"]
[Round "9.4"]
[White "Touzane, Olivier"]
[Black "Perez Candelario, Manuel"]
[Result "0-1"]
[ECO "E68"]
[WhiteElo "2266"]
[BlackElo "2578"]
[Annotator "TA"]
[PlyCount "84"]
[EventDate "2022.08.02"]
[EventType "swiss"]
[EventCountry "POR"]
[SourceTitle "playchess.com"]
[Source "ChessBase"]
[SourceQuality "1"]
[TimeControl "5400+30"]

{[%evp 24,84,36,37,35,34,36,32,62,29,49,50,48,18,11,16,25,13,54,0,55,33,41,19,88,97,96,81,85,83,93,83,60,-26,-52,-400,-326,-551,-468,-816,-793,-1124,-1116,-1106,-1085,-1259,-1256,-1639,-1546,-1795,-1746,-29988,-29989,-29991,-29990,-29992,-29989,-29991,-29992,-29992,-29993,-29995,-29994]} 1. Nf3 d6 2. d4 Nf6 3. g3 Nbd7 4. c4 g6 5. Bg2 Bg7 6. O-O O-O 7. Nc3 e5 8. e4 exd4 9. Nxd4 Re8 10. h3 Nc5 11. Re1 Bd7 12. Rb1 h6 13. Kh2 a6 {[%cal Ob7b5] was the old line (13...a5). E68: King's Indian: Fianchetto: 6...Nbd7 7 0-0 e5 8 e4.} 14. b4 Ne6 {[#] Strongly threatening ...Nxd4.} 15. Be3 h5 $5 {[%cal Oh5h4][%mdl 4] [#] White is slightly better. An interesting side line.} 16. Nf3 $146 ({Predecessor:} 16. f4 a5 17. b5 Nc5 18. Bf2 Qc8 19. e5 dxe5 20. Nf3 e4 21. Bxc5 Bg4 22. Nxe4 Rxe4 23. hxg4 Nxg4+ {1-0 (32) Gonda,L (2549)-Spasov,V (2539) Bol 2015}) 16... Nh7 17. Qd2 b5 18. cxb5 axb5 19. Bh6 Bxh6 20. Qxh6 Ra3 21. Re3 ({White should try} 21. Qd2 $14) 21... Bc6 (21... Neg5 $11) 22. Rbe1 {[%cal Bb1e1,Be1e2,Be2d2][%mdl 32]} Ba8 23. R1e2 c6 (23... Nf6 $11) 24. Rd2 $16 Qb8 25. Ne1 c5 26. Nc2 Ra6 27. Bf1 Rb6 28. f4 ({White should play} 28. h4 $14) 28... Ng7 $1 $11 {[%cal Og6g5] Threatens to win with ...g5!} 29. g4 $2 {[%mdl 8192] This move loses the game for White.} ({White has to play} 29. f5 $1 $15) 29... Re6 {[%cal Og6g5] ...g5! is the strong threat.} 30. g5 $2 (30. bxc5 g5 31. Qxe6 Nxe6 32. cxb6 gxf4 33. Red3 hxg4 34. Nb4 (34. Rxd6 $2 Nhg5 $19)) 30... d5 31. Nxd5 (31. bxc5 $142 Qxf4+ 32. Kg1 Nxg5 33. cxb6) 31... Bxd5 $19 {[%mdl 64] [#] Remove Defender} 32. Rxd5 Qxf4+ 33. Kg1 Rbd6 34. Ra3 Rxd5 35. exd5 Re8 {aiming for ...Nf5.} 36. Bxb5 Qc1+ 37. Kf2 Qxc2+ {Black mates.} 38. Kf3 Qd1+ 39. Kf2 Qd2+ 40. Kg1 Re1+ 41. Bf1 Qd4+ 42. Kh2 Qb2+ {Weighted Error Value: White=1.02/Black=0.15 (very precise)} 0-1

[Event "Leca Open 2022"]
[Site "Leca da Palmeira"]
[Date "2022.08.05"]
[Round "9.5"]
[White "Spraggett, Kevin"]
[Black "Buscara, Sevan"]
[Result "1-0"]
[ECO "A06"]
[WhiteElo "2487"]
[BlackElo "2404"]
[Annotator "TA"]
[PlyCount "115"]
[EventDate "2022.08.02"]
[EventType "swiss"]
[EventCountry "POR"]
[SourceTitle "playchess.com"]
[Source "ChessBase"]
[SourceQuality "1"]
[TimeControl "5400+30"]

{[%evp 15,115,-4,4,-14,-7,-7,-11,-22,-22,-14,0,-23,12,-21,-24,-36,-23,-36,-36,-42,-41,-49,-32,-95,-102,-118,-118,-127,0,-14,-5,-6,0,-4,0,0,0,0,0,0,0,0,80,79,78,81,91,81,88,87,85,57,67,54,58,62,61,58,154,72,159,152,168,59,64,49,64,62,57,60,60,62,86,87,84,89,93,99,99,29,29,0,0,0,0,0,52,52,57,54,55,55,242,242,389,389,374,368,637,564,645,645]} 1. Nf3 {[%emt 0:00:02]} d5 {[%emt 0:01:45]} 2. g3 {[%emt 0:00:49]} Bg4 {[%emt 0:00:11]} 3. Bg2 {[%emt 0:00:10]} Nd7 {[%emt 0:00:04]} 4. O-O {[%emt 0:02:12]} e6 {[%emt 0:00:10]} 5. b3 {[%emt 0:00:28]} Ngf6 {[%emt 0:00:22]} 6. Bb2 {[%emt 0:00:22]} Be7 {[%emt 0:00:14]} 7. c4 {[%emt 0:00:36] is the legacy move (7.d3).} c6 {[%emt 0:00:18]} 8. d3 {[%emt 0:00:38]} O-O {[%emt 0:00:09]} 9. Na3 {[%emt 0:01:57][%cal Bb1a3,Ba3c2,Bc2e3][%mdl 32] A12: English Opening: 1...c6 with b3 by White.} h6 {[%emt 0:01:21]} 10. Nc2 {[%emt 0:00:29] [#]} Re8 $146 {[%emt 0:00:40]} ({Predecessor:} 10... a5 11. Rb1 Bf5 12. Qd2 Bh7 13. Ne3 c5 14. cxd5 Nxd5 15. a4 Bf6 16. Nc4 Bxb2 17. Qxb2 Rb8 18. Rbc1 b6 19. Rfd1 Qe7 20. Nfe5 Nxe5 21. Qxe5 {½-½ (21) Haakert,J (2352)-Khanukov,B (2329) Bergen 2014}) 11. Ne3 {[%emt 0:01:19] The position is equal.} Bh5 $1 {[%emt 0:00:30][%cal Bg4h5,Bh5g6,Bg6h7][%mdl 32]} 12. a3 {[%emt 0:04:45]} Bf8 {[%emt 0:07:30]} 13. Re1 {[%emt 0:01:05]} Bg6 {[%emt 0:00:56]} 14. Rc1 {[%emt 0:15:14]} a5 {[%emt 0:01:35]} 15. h3 {[%emt 0:02:18]} Bh7 {[%emt 0:00:54]} 16. Ng4 {[%emt 0:02:30]} Nxg4 {[%emt 0:00:36]} 17. hxg4 {[%emt 0:00:02]} e5 {[%emt 0:02:46]} 18. cxd5 {[%emt 0:02:10]} cxd5 {[%emt 0:01:45]} 19. Bh3 {[%emt 0:05:59]} (19. Nd2 $15) 19... e4 $17 {[%emt 0:02:02]} 20. dxe4 {[%emt 0:00:06]} dxe4 {[%emt 0:00:13]} 21. Nd4 {[%emt 0:03:12]} Qg5 {[%emt 0:03:59]} (21... e3 $17 {Hoping for ...exf2+.} 22. f3 Qb6) 22. Ne6 $11 {[%emt 0:15:03]} Rxe6 {[%emt 0:03:23]} 23. Qxd7 {[%emt 0:00:04]} Rd8 {[%emt 0:01:11]} 24. Qxb7 {[%emt 0:05:44]} h5 {[%emt 0:04:02]} 25. gxh5 {[%emt 0:06:33]} Rh6 {[%emt 0:01:02]} 26. Rc8 {[%emt 0:09:38]} Rxc8 {[%emt 0:02:08]} 27. Qxc8 {[%emt 0:00:03] aiming for Bc1.} Qxh5 {[%emt 0:00:53]} 28. Kg2 {[%emt 0:00:40]} f5 {[%emt 0:03:16]} (28... e3 $11 29. f3 (29. fxe3 $2 Be4+ 30. Kf1 Qxh3+ 31. Qxh3 Rxh3 $19) 29... Qd5) 29. Qc4+ $16 {[%emt 0:00:14]} (29. Rh1 Qxe2 30. Bc1 (30. Qc4+ Qxc4 31. bxc4 a4 $17) 30... Qf3+ 31. Kg1 Qd1+ 32. Kg2 Qf3+ 33. Kg1 Rh5 $11) 29... Kh8 {[%emt 0:00:08]} 30. Rh1 {[%emt 0:00:43] Active counter play!} f4 {[%emt 0:05:29]} 31. Qc8 $40 {[%emt 0:03:29][%mdl 128] Prevents Bf5. Black is in trouble.} f3+ {[%emt 0:00:22]} 32. Kg1 {[%emt 0:00:28] Really sharp!} Qc5 {[%emt 0:01:47]} 33. exf3 {[%emt 0:03:00]} exf3 {[%emt 0:03:37]} 34. Bg4 {[%emt 0:01:14]} Qxc8 {[%emt 0:08:40]} 35. Bxc8 {[%emt 0:00:26] And now Rxh6 would win.} Rd6 {[%emt 0:00:38]} 36. Rh4 {[%emt 0:00:49] Black must now prevent Bf5.} Rd1+ {[%emt 0:01:39]} 37. Kh2 {[%emt 0:00:01]} Rd2 {[%emt 0:00:26]} ({Black should play} 37... Be7) 38. Bd4 {[%emt 0:00:20]} Be7 {[%emt 0:00:51]} 39. Rf4 {[%emt 0:00:58]} ({White must play} 39. Rg4 $1 $18 Bf6 40. Be3) 39... Bxa3 $14 {[%emt 0:02:14]} 40. Bb7 {[%emt 0:01:12]} Bd6 {[%emt 0:04:30]} 41. Rg4 {[%emt 0:00:24]} Bf5 {[%emt 0:00:19]} 42. Rh4+ {[%emt 0:00:48]} (42. Bxg7+ $6 Kh7 43. Rg5 Rxf2+ 44. Kg1 Rg2+ 45. Kh1 Rxg3 46. Rxf5 Kxg7 $11) 42... Kg8 {[%emt 0:00:04]} 43. Be3 {[%emt 0:00:10]} Rd3 {[%emt 0:00:56] [#]} 44. Ba6 $1 {[%emt 0:00:49]} Rd1 {[%emt 0:01:08]} 45. Bc4+ {[%emt 0:01:33]} Kf8 {[%emt 0:01:33]} 46. Rh8+ {[%emt 0:00:02]} Ke7 {[%emt 0:00:07] [#]} 47. Ra8 {[%emt 0:00:22]} (47. Bg5+ $1 $16 Kd7 48. Ra8) 47... Bb4 $1 $11 {[%emt 0:09:54]} 48. Ra7+ {[%emt 0:03:14]} Kf6 {[%emt 0:00:42]} 49. Ra6+ {[%emt 0:00:16]} Rd6 {[%emt 0:00:37]} 50. Ra8 {[%emt 0:01:16]} g6 {[%emt 0:03:16]} ({Black should try} 50... Rd1 $11) 51. Rf8+ $14 {[%emt 0:00:51]} Ke7 {[%emt 0:00:10]} 52. Rf7+ {[%emt 0:00:19]} Ke8 {[%emt 0:00:04]} 53. Ra7 {[%emt 0:00:18] Strongly threatening Bg5.} Be6 $2 {[%emt 0:02:44] Black cannot hold the game after this.} (53... Kd8 $1 $14) 54. Bf4 $18 {[%emt 0:00:50]} Rd7 {[%emt 0:06:35]} (54... Rb6 $142 55. Bc7 Bxc4 56. Bxb6 Bd5) 55. Bb5 {[%emt 0:00:29]} Bc5 {[%emt 0:00:02]} 56. Ra6 {[%emt 0:01:19]} Bxb3 {[%emt 0:00:59]} (56... Kf7 57. Bxd7 (57. Rxa5 Rd5 $11) 57... Bxd7) 57. Bg5 {[%emt 0:02:26]} Bd5 {[%emt 0:03:02]} 58. Rxa5 {[%emt 0:00:19] Weighted Error Value: White=0.12 (very precise) /Black=0.33} 1-0

[Event "Leca Open 2022"]
[Site "Leca da Palmeira"]
[Date "2022.08.05"]
[Round "9.6"]
[White "Panesar Vedant"]
[Black "Abdisalimov, Abdimalik"]
[Result "1/2-1/2"]
[ECO "E94"]
[WhiteElo "2318"]
[BlackElo "2437"]
[Annotator "TA"]
[PlyCount "43"]
[EventDate "2022.08.02"]
[EventType "swiss"]
[EventCountry "POR"]
[SourceTitle "playchess.com"]
[Source "ChessBase"]
[SourceQuality "1"]
[TimeControl "5400+30"]

{[%evp 15,43,32,48,30,31,8,7,14,12,14,18,23,24,0,0,0,0,0,0,0,0,0,0,0,0,0,0,0,5,5]} 1. Nf3 Nf6 2. c4 g6 3. Nc3 Bg7 4. e4 d6 5. d4 {[%cal Bd2d4,Bd4e5][%mdl 32]} O-O 6. Be2 e5 7. O-O Na6 8. Be3 Qe8 {Recently 8...c6 got a lot of attention.} 9. dxe5 {E94: King's Indian: Classical: 6 Be2 e5 7 0-0: Various Black 7th moves.} (9. d5 {keeps more tension.} Ng4 10. Bd2 f5 11. exf5 gxf5 12. Nh4) 9... Ng4 10. exd6 {[#] Hoping for Bd4.} (10. Bf4 {feels hotter.} dxe5 11. Bg5 c6 12. a3) 10... Nxe3 11. fxe3 {[%cal Oe4e5]} Bxc3 12. bxc3 cxd6 13. Qxd6 {Black must now prevent Ng5.} Qxe4 14. Qf4 Re8 {[#] ...Qxf4 is the strong threat. The position is equal.} 15. Ng5 Qxe3+ 16. Qxe3 Rxe3 17. Bf3 Nc5 18. Nxf7 {Threatening Nd6.} Be6 19. Nd6 {Threatens to win with Rfe1.} Rd8 20. Nxb7 Nxb7 21. Bxb7 {[#]} Bxc4 $146 ({Predecessor:} 21... Rxc3 22. Rac1 Rxc4 23. Rce1 Rc7 24. Rxe6 Rxb7 25. Re2 Rf8 26. Rxf8+ Kxf8 27. Kf2 Kf7 {½-½ (46) Bauer,P (2255)-Lorscheid,G (2320) Wuerttemberg 1998}) 22. Rf3 {Weighted Error Value: White=0.07 (flawless) /Black=0.02 (flawless)} 1/2-1/2

[Event "Leca Open 2022"]
[Site "Leca da Palmeira"]
[Date "2022.08.05"]
[Round "9.7"]
[White "Prieto Martin, Alfonso"]
[Black "Das, Sayantan"]
[Result "0-1"]
[ECO "C03"]
[WhiteElo "2264"]
[BlackElo "2449"]
[Annotator "TA"]
[PlyCount "120"]
[EventDate "2022.08.02"]
[EventType "swiss"]
[EventCountry "POR"]
[SourceTitle "playchess.com"]
[Source "ChessBase"]
[SourceQuality "1"]
[TimeControl "5400+30"]

{[%evp 15,120,15,8,12,22,22,41,31,41,32,48,58,54,46,52,57,66,20,36,15,183,73,79,85,69,83,75,56,63,44,62,56,57,0,34,0,49,-3,16,-197,-187,-241,-262,-330,-197,-194,-180,-179,-200,-186,-171,-377,-349,-376,-375,-376,-374,-369,-368,-361,-369,-366,-357,-361,-342,-329,-314,-336,-329,-576,-572,-572,-566,-12829,-11321,-1302,-1190,-12837,-12837,-12835,-12836,-12836,-12836,-12841,-12841,-12841,-12841,-12841,-12842,-12842,-12843,-12843,-12843,-12844,-12844,-12845,-12845,-12846,-12845,-12846,-12846,-12847,-12846,-12850,-12850,-12850,-12849]} 1. e4 e6 2. d4 d5 3. Nd2 Be7 4. Ngf3 Nf6 5. e5 Nfd7 6. Bd3 c5 7. c3 Nc6 8. O-O a5 9. Re1 {9.a4 deserves study. C06: French Tarrasch: 3...Nf6 4 e5 Nfd7 5 Bd3 main lines.} a4 10. Nf1 a3 11. b3 {White is slightly better.} cxd4 12. cxd4 Nb4 13. Bb1 Nb8 14. Ng3 {[#]} Bd7 $146 ({Predecessor:} 14... h5 15. Qd2 Bd7 16. h4 Bb5 17. Ng5 N8c6 18. Rd1 Bxg5 19. hxg5 g6 20. Ne2 Bxe2 21. Qxe2 Qb6 22. Qe3 {½-½ (22) Druska,J (2460)-Cvek,R (2537) Slovakia 2016}) 15. Nh5 g6 16. Nf6+ (16. Ng7+ $14 Kf8 17. Bh6) 16... Bxf6 $11 17. exf6 N4c6 $2 (17... Qxf6 $11 18. Bg5 Qg7) 18. Bh6 (18. b4 $18 {has better winning chances.}) 18... Qxf6 $16 19. Qd2 Qe7 20. Bd3 {[%mdl 1024] White has compensation.} f6 21. h4 Nb4 {[#]} 22. Bb5 $1 {[%cal Oe1e6] Threatens to win with Rxe6! This bishop pair is nice.} N8c6 $1 ({Not} 22... Bxb5 {[#]} 23. Rxe6 $3 {[%mdl 512]} Qxe6 24. Re1 $16) 23. Rac1 Kf7 $1 24. Rc5 (24. Qf4 $14) 24... Rhc8 25. Qf4 Ke8 (25... Nxa2 $2 26. Rxd5 Rd8 27. Bc4 $18 (27. Qd2 $2 Nab4 $19)) (25... Kg8 $11 26. Qd2 Rd8) 26. Bxc6 (26. Nh2 $1 $14) 26... Nxc6 27. Rxd5 $2 (27. Rb5 $11 {and White has nothing to worry.}) 27... Nb4 $19 28. Rxd7 (28. Rd6 $142 Nd3 29. Qg3) 28... Kxd7 29. Qe4 Nd5 (29... Nxa2 $142 30. Bd2 Ke8) 30. Nd2 Ra6 31. Nc4 Ke8 32. Bc1 b5 33. Bxa3 $2 (33. Ne3 Nxe3 34. Bxe3) 33... Qd7 34. Nd6+ Rxd6 35. Bxd6 Qxd6 36. Qxe6+ Qxe6 37. Rxe6+ {[%mdl 4096] Endgame KRN-KR} Kd7 38. Ra6 Rc1+ 39. Kh2 Rc2 40. Kg1 Rc6 41. Ra7+ Nc7 {Strongly threatening ...Ra6.} 42. a4 $2 (42. Kf1 {was called for.}) 42... Ra6 {Black is clearly winning.} 43. Rxa6 Nxa6 44. axb5 {KN-KP} Nb4 45. Kf1 Nc2 46. Ke2 Nxd4+ 47. Kd3 Nxb5 48. Kc4 Kc6 49. h5 gxh5 {KN-K3P} 50. b4 h4 51. Kd3 Kd5 52. Ke3 Ke5 53. Kf3 f5 {[%cal Bf6f5,Bf5f4][%mdl 32]} 54. Ke3 f4+ 55. Ke2 Ke4 56. Kf1 Kd3 57. Ke1 Nd4 58. Kf1 h6 59. g3 hxg3 60. fxg3 f3 {Weighted Error Value: White=0.63/Black=0.22 (precise)} 0-1

[Event "Leca Open 2022"]
[Site "Leca da Palmeira"]
[Date "2022.08.05"]
[Round "9.8"]
[White "Akhvlediani, Irakli"]
[Black "Mahitosh Dey"]
[Result "1-0"]
[ECO "D02"]
[WhiteElo "2429"]
[BlackElo "2212"]
[Annotator "TA"]
[PlyCount "49"]
[EventDate "2022.08.02"]
[EventType "swiss"]
[EventCountry "POR"]
[SourceTitle "playchess.com"]
[Source "ChessBase"]
[SourceQuality "1"]
[TimeControl "5400+30"]

{[%evp 9,49,0,32,20,45,24,19,12,79,-15,3,0,52,45,46,36,35,31,50,4,0,14,0,-23,0,0,72,68,44,60,132,97,116,103,90,110,82,105,82,79,594,590]} 1. d4 d5 2. Nf3 Nf6 3. Bf4 c5 4. e3 Nc6 5. Nbd2 c4 6. c3 {D02: 1 d4 d5 2 Nf3 sidelines, including 2...Nf6 3 g3 and 2...Nf6 3 Bf4.} Bf5 7. Nh4 Bd7 {[#]} 8. Qc2 $146 {The position is equal.} ({Predecessor:} 8. Be2 h6 9. Bg3 g5 10. Nhf3 Bf5 11. Ne5 Nxe5 12. Bxe5 Bg7 13. e4 Be6 14. exd5 Bxd5 15. Bxc4 Bxg2 {1-0 (39) Arpita,M (2260)-Ghosh,S (1910) Bhubaneswar 2022}) 8... Nh5 (8... e6 $11 {remains equal.}) 9. Bg3 ({White should try} 9. Bg5 $16) 9... e6 10. Be2 Be7 (10... Nxg3 $11 11. hxg3 g6) 11. Bxh5 $14 {Threatens to win with Nhf3.} Bxh4 12. e4 O-O 13. Bf3 Re8 14. O-O-O (14. Kf1 $14) 14... Bg5 $11 15. h4 $36 {[%mdl 2048] White fights for an advantage.} (15. exd5 exd5 16. Bxd5 Bg4 17. Bxc4 Bxd1 18. Kxd1 Bxd2 19. Qxd2 Rc8 $14) 15... Bh6 16. Kb1 Qa5 17. Bh2 f5 (17... Ne7 $11 {keeps the balance.}) 18. exd5 exd5 19. b4 Nxb4 20. cxb4 $16 Qxb4+ 21. Ka1 Ba4 {[#]} 22. Qb2 ({Of course not} 22. Bxd5+ Kh8 23. Qb2 (23. Qxc4 Bxd2 24. Qxb4 Bxb4 $17) 23... Qxb2+ 24. Kxb2 Rad8 $15) 22... Qa5 {[#] And now ...c3 would win.} 23. Nb1 {[%cal Ob2b7] Against c3} Bxd1 24. Rxd1 Re6 $2 {[%mdl 8192]} (24... Rad8 $16 {keeps fishing.}) 25. Qxb7 {Weighted Error Value: White=0.15 (very precise) /Black=0.54} 1-0

[Event "Leca Open 2022"]
[Site "Leca da Palmeira"]
[Date "2022.08.05"]
[Round "9.9"]
[White "Balaji, Aaravamudhan"]
[Black "Umetsubo, Cesar Hidemitsu"]
[Result "1/2-1/2"]
[ECO "E29"]
[WhiteElo "2228"]
[BlackElo "2405"]
[Annotator "TA"]
[PlyCount "114"]
[EventDate "2022.08.02"]
[EventType "swiss"]
[EventCountry "POR"]
[SourceTitle "playchess.com"]
[Source "ChessBase"]
[SourceQuality "1"]
[TimeControl "5400+30"]

{[%evp 20,114,-22,-29,-22,-27,-21,-22,8,17,8,3,4,0,11,7,6,0,0,0,0,-6,-4,-25,-18,-18,-24,-25,-27,-35,-30,-44,8,-39,-39,-39,-39,-42,-36,-56,-41,-41,-41,-41,-47,-56,-56,-56,-56,-56,-26,-29,-27,-63,-35,-25,0,-31,-27,-136,-135,-126,-135,-135,-128,-126,-131,-131,-117,-183,-131,-166,-160,-179,-191,-180,-162,-211,-203,-161,-125,-143,-90,-100,-28,-28,-28,-28,-16,-147,0,0,0,0,0,0,0]} 1. d4 {[%emt 0:00:04]} Nf6 {[%emt 0:00:20]} 2. c4 {[%emt 0:00:05]} e6 {[%emt 0:00:22]} 3. Nc3 {[%emt 0:00:05]} Bb4 {[%emt 0:00:08]} 4. a3 {[%emt 0:00:05]} Bxc3+ {[%emt 0:00:05]} 5. bxc3 {[%emt 0:00:03]} O-O {[%emt 0:00:18]} 6. e3 {[%emt 0:00:26]} c5 {[%emt 0:00:11]} 7. Bd3 {[%emt 0:00:07]} Nc6 {[%emt 0:00:08]} 8. Ne2 {[%emt 0:00:23][%cal Bg1e2,Be2g3,Bg3f5][%mdl 32]} b6 {[%emt 0:00:20]} 9. e4 {[%emt 0:00:16]} Ne8 {[%emt 0:00:09]} 10. O-O {[%emt 0:00:06]} Ba6 {[%emt 0:00:08]} 11. Ng3 {[%emt 0:00:06]} cxd4 {[%emt 0:21:10] E29: Nimzo-Indian: Sämisch: 5...0-0 6 e3 c5 7 Bd3 Nc6.} 12. cxd4 {[%emt 0:00:13]} Nxd4 {[%emt 0:00:06]} 13. Bb2 {[%emt 0:00:08] [#]} e5 $146 {[%emt 0:00:37]} ({Predecessor:} 13... Nc6 14. e5 f5 15. exf6 Nxf6 16. Nh5 Qe7 17. Re1 e5 18. Ng3 Qc5 19. a4 Bb7 {1-0 (27) Berczes,D (2514)-Wells,P (2516) Hinckley Island 2008}) 14. Bxd4 {[%emt 0:00:13]} exd4 {[%emt 0:00:01]} 15. Nf5 {[%emt 0:00:13]} g6 {[%emt 0:26:39]} 16. Nxd4 {[%emt 0:04:07]} Nc7 {[%emt 0:01:47]} 17. Re1 {[%emt 0:14:55]} Ne6 {[%emt 0:00:59]} 18. Bf1 {[%emt 0:02:38]} Rc8 {[%emt 0:00:54]} 19. Nxe6 {[%emt 0:02:23]} fxe6 {[%emt 0:02:39]} (19... dxe6 20. Qa4 Bb7 21. Qxa7 $16) 20. Qa4 {[%emt 0:08:54]} Bb7 {[%emt 0:00:33]} 21. Rad1 {[%emt 0:17:31]} Bc6 {[%emt 0:00:55]} 22. Qb4 {[%emt 0:01:07]} (22. Qxa7 $2 Ra8 23. Qxa8 Qxa8 $19) 22... Qf6 {[%emt 0:04:26]} 23. Rd2 {[%emt 0:01:54]} Qe5 {[%emt 0:00:19]} (23... g5 {keeps more tension.} 24. Qd6 Qf4 25. Qd4 Rf7) 24. Qd6 {[%emt 0:01:39]} Qxd6 {[%emt 0:02:13]} 25. Rxd6 {[%emt 0:00:01]} e5 {[%emt 0:01:16]} ({Better is} 25... Kf7 $15) 26. f3 {[%emt 0:03:03]} (26. c5 $11 {deserves consideration.}) 26... Kf7 $15 {[%emt 0:00:51]} 27. Kf2 {[%emt 0:07:58]} Ke7 {[%emt 0:00:18]} 28. Rd2 {[%emt 0:00:24]} d6 {[%emt 0:01:00]} 29. Ke3 {[%emt 0:03:29][%cal Oa3a4]} Bd7 {[%emt 0:00:56]} 30. Red1 {[%emt 0:04:07]} Ba4 {[%emt 0:00:57]} 31. Rb1 {[%emt 0:00:23]} Rc5 {[%emt 0:00:11]} 32. h4 {[%emt 0:03:47]} Rfc8 {[%emt 0:00:28]} 33. Rd5 {[%emt 0:04:17]} R5c7 {[%emt 0:04:48]} 34. g3 {[%emt 0:01:19]} Bd7 {[%emt 0:02:30]} (34... Be8 $5 {[%cal Re8f7]}) 35. Rbd1 {[%emt 0:02:35]} Rc6 {[%emt 0:00:03]} 36. f4 {[%emt 0:01:28]} Be6 {[%emt 0:01:08]} 37. R5d2 {[%emt 0:00:15]} R8c7 {[%emt 0:10:50]} 38. h5 {[%emt 0:04:25]} Bg4 {[%emt 0:01:28]} 39. hxg6 {[%emt 0:01:47]} (39. Be2 $11 {keeps the balance.} Bxe2 40. Kxe2) 39... Bxd1 $17 {[%emt 0:05:19]} ({And not} 39... hxg6 40. Rb1 $11) 40. gxh7 {[%emt 0:00:01] [#]} Rc8 {[%emt 0:00:08]} 41. Rxd1 {[%emt 0:00:18][%mdl 4096] Endgame KRR-KRB} Rh8 {[%emt 0:00:20]} 42. fxe5 {[%emt 0:00:22]} Rxh7 {[%emt 0:00:50]} ({But not} 42... dxe5 $6 43. Bh3 $11) 43. exd6+ {[%emt 0:00:33]} Rxd6 {[%emt 0:00:02]} 44. Bd3 {[%emt 0:00:11]} (44. Rd5 $17 {might work better.}) 44... Rh5 {[%emt 0:04:28]} (44... Rg7 $19 45. Rg1 Rdg6) 45. Rb1 {[%emt 0:00:40]} Ra5 {[%emt 0:00:31][%mdl 1024] Black has strong compensation.} 46. Rb3 {[%emt 0:00:01]} Rg6 {[%emt 0:00:46]} 47. Kf2 {[%emt 0:02:51]} Ke6 {[%emt 0:00:38]} 48. Bc2 {[%emt 0:03:33]} (48. Be2 {was called for.}) 48... Rc5 {[%emt 0:01:45]} 49. Rd3 {[%emt 0:05:48]} Rh6 {[%emt 0:01:29] Strongly threatening ...Rh2+.} 50. Ke3 {[%emt 0:00:59]} b5 {[%emt 0:02:57]} (50... Ke7 $142 51. Bb3 Rg6) 51. Rd5 {[%emt 0:00:34] [#]} Rxd5 {[%emt 0:00:46]} ({Much weaker is} 51... Rxc4 $6 52. Bb3 Rc6 53. Rxb5+ Kd7 54. Rd5+ Rcd6 55. Rf5 $11) (51... Rh5 $1 $17 {[%cal Rh5d5]} 52. Rxh5 Rxh5 53. cxb5 Rxb5) 52. exd5+ {[%emt 0:00:02] KR-KB} Ke5 {[%emt 0:00:09]} 53. cxb5 {[%emt 0:00:02]} Rh2 {[%emt 0:00:50]} 54. Bb3 {[%emt 0:01:50]} (54. Kd3 $11) 54... Rg2 {[%emt 0:00:20]} (54... Rb2 $17 55. Bc4 Rg2) 55. Kd3 $1 $11 {[%emt 0:00:35] The position is equal.} Rxg3+ {[%emt 0:00:21]} 56. Kc4 {[%emt 0:00:21]} Kd6 {[%emt 0:00:25] ...Rg4+ is the strong threat.} 57. Kb4 $1 Ke5 {Whites escaped into a draw.  Weighted Error Value: White=0.18 (very precise) /Black=0.14 (very precise)} 1/2-1/2